fUSD/lending_fUSD_20260509
["ID","MTS","AMOUNT","RATE_DAILY","PERIOD"]
[421893053,1778303443000,-251.50398158,0.00015189,2]
[421893058,1778303443000,-1500.0,0.00015368,2]
[421893052,1778303443000,-279.62,0.0001517,2]
[421893055,1778303443000,-1986.53653643,0.00015285,2]
[421893054,1778303443000,-500.97635947,0.0001523,2]
[421893056,1778303443000,-167.34,0.000153,2]
[421893057,1778303443000,-2000.0,0.00015328,2]
[421893000,1778303443000,-150.0,0.00015,2]
[421893031,1778303443000,-483.955109,0.00015068,2]
[421893030,1778303443000,-483.955109,0.00015068,2]
[421893048,1778303443000,-500.0,0.0001507,2]
[421893022,1778303443000,-575.808466,0.00015,2]
[421893001,1778303443000,-896.04082175,0.00015,2]
[421893025,1778303443000,-151.39655091,0.00015027,2]
[421892999,1778303443000,-454.62608834,0.00015,2]
[421893004,1778303443000,-305125.8761047,0.00015,2]
[421893003,1778303443000,-2594.00346314,0.00015,2]
[421893006,1778303443000,-948004.0320976,0.00015,2]
[421893014,1778303443000,-650.83633,0.00015,2]
[421893015,1778303443000,-650.83634,0.00015,2]
[421893008,1778303443000,-151.0,0.00015,2]
[421893016,1778303443000,-650.83634,0.00015,2]
[421893010,1778303443000,-201.31,0.00015,2]
[421893007,1778303443000,-1456.0,0.00015,2]
[421893009,1778303443000,-162.852189,0.00015,2]
[421893012,1778303443000,-113763.13227957,0.00015,2]
[421893011,1778303443000,-214.92,0.00015,2]
[421893027,1778303443000,-483.955109,0.00015068,2]
[421893021,1778303443000,-575.808466,0.00015,2]
[421893013,1778303443000,-4947.03045065,0.00015,2]
[421893026,1778303443000,-900.0,0.00015068,2]
[421893019,1778303443000,-353.004039,0.00015,2]
[421893024,1778303443000,-575.808458,0.00015,2]
[421893020,1778303443000,-353.00403,0.00015,2]
[421893023,1778303443000,-575.808466,0.00015,2]
[421893029,1778303443000,-483.955109,0.00015068,2]
[421893018,1778303443000,-353.004039,0.00015,2]
[421893017,1778303443000,-353.004039,0.00015,2]
[421893005,1778303443000,-379.42,0.00015,2]
[421893028,1778303443000,-483.955109,0.00015068,2]
[421893110,1778303444000,-151.0,0.00016438,2]
[421893097,1778303444000,-2000.0,0.00016419,2]
[421893100,1778303444000,-2000.0,0.00016419,2]
[421893106,1778303444000,-900.0,0.00016438,2]
[421893107,1778303444000,-501.99955859,0.00016438,2]
[421893095,1778303444000,-2000.0,0.00016419,2]
[421893090,1778303444000,-2000.0,0.00016419,2]
[421893093,1778303444000,-2000.0,0.00016419,2]
[421893092,1778303444000,-2000.0,0.00016419,2]
[421893091,1778303444000,-2000.0,0.00016419,2]
[421893096,1778303444000,-2000.0,0.00016419,2]
[421893109,1778303444000,-151.0,0.00016438,2]
[421893094,1778303444000,-2000.0,0.00016419,2]
[421893108,1778303444000,-339.33269262,0.00016438,2]
[421893122,1778303444000,-503.33401719,0.00016438,2]
[421893101,1778303444000,-2000.0,0.00016419,2]
[421893113,1778303444000,-502.64298365,0.00016438,2]
[421893105,1778303444000,-500.0,0.00016438,2]
[421893102,1778303444000,-2410.0,0.00016438,2]
[421893103,1778303444000,-461.70200284,0.00016438,2]
[421893104,1778303444000,-150.0,0.00016438,2]
[421893116,1778303444000,-500.0,0.00016438,2]
[421893118,1778303444000,-502.67841977,0.00016438,2]
[421893115,1778303444000,-500.0,0.00016438,2]
[421893117,1778303444000,-500.0,0.00016438,2]
[421893119,1778303444000,-500.0,0.00016438,2]
[421893124,1778303444000,-503.62973309,0.00016438,2]
[421893089,1778303444000,-2000.0,0.00016419,2]
[421893111,1778303444000,-151.0,0.00016438,2]
[421893099,1778303444000,-2000.0,0.00016419,2]
[421893062,1778303444000,-250.0,0.00015616,2]
[421893098,1778303444000,-2000.0,0.00016419,2]
[421893059,1778303444000,-1505.99032737,0.00015368,2]
[421893061,1778303444000,-1582.0,0.00015562,2]
[421893060,1778303444000,-435.0,0.00015555,2]
[421893063,1778303444000,-500.0,0.00015699,2]
[421893066,1778303444000,-3292.0,0.00015811,2]
[421893065,1778303444000,-7291.13743585,0.00015789,2]
[421893064,1778303444000,-331.0,0.00015702,2]
[421893074,1778303444000,-350.0,0.00016164,2]
[421893071,1778303444000,-300.0,0.00016,2]
[421893072,1778303444000,-518.98,0.000161,2]
[421893069,1778303444000,-503.96451581,0.00015916,2]
[421893073,1778303444000,-9999.99,0.00016116,2]
[421893070,1778303444000,-280.00324556,0.00016,2]
[421893068,1778303444000,-150.47783863,0.000159,2]
[421893067,1778303444000,-736.0,0.00015848,2]
[421893076,1778303444000,-279.36,0.000163,2]
[421893086,1778303444000,-2000.0,0.00016419,2]
[421893077,1778303444000,-160.19,0.000163,2]
[421893083,1778303444000,-2000.0,0.00016419,2]
[421893082,1778303444000,-2000.0,0.00016419,2]
[421893084,1778303444000,-2000.0,0.00016419,2]
[421893078,1778303444000,-155.0,0.00016304,2]
[421893121,1778303444000,-259.76502518,0.00016438,2]
[421893080,1778303444000,-1681.36,0.0001637,2]
[421893075,1778303444000,-2150.8711385,0.00016223,2]
[421893079,1778303444000,-159.63,0.00016359,2]
[421893081,1778303444000,-525.03,0.000164,2]
[421893085,1778303444000,-2000.0,0.00016419,2]
[421893087,1778303444000,-2000.0,0.00016419,2]
[421893088,1778303444000,-2000.0,0.00016419,2]
[421893123,1778303444000,-502.48607384,0.00016438,2]
[421893168,1778303444000,-636.671876,0.00016438,2]
[421893128,1778303444000,-500.78865472,0.00016438,2]
[421893160,1778303444000,-500.43219618,0.00016438,2]
[421893159,1778303444000,-164.54529764,0.00016438,2]
[421893163,1778303444000,-636.671876,0.00016438,2]
[421893157,1778303444000,-196.08970693,0.00016438,2]
[421893158,1778303444000,-565.97523509,0.00016438,2]
[421893169,1778303444000,-636.671876,0.00016438,2]
[421893162,1778303444000,-636.671876,0.00016438,2]
[421893170,1778303444000,-636.671876,0.00016438,2]
[421893165,1778303444000,-636.671876,0.00016438,2]
[421893166,1778303444000,-636.671876,0.00016438,2]
[421893171,1778303444000,-636.671876,0.00016438,2]
[421893174,1778303444000,-636.671876,0.00016438,2]
[421893173,1778303444000,-636.671876,0.00016438,2]
[421893164,1778303444000,-636.671876,0.00016438,2]
[421893172,1778303444000,-636.671876,0.00016438,2]
[421893175,1778303444000,-636.671876,0.00016438,2]
[421893176,1778303444000,-636.671876,0.00016438,2]
[421893179,1778303444000,-636.671876,0.00016438,2]
[421893177,1778303444000,-636.671876,0.00016438,2]
[421893178,1778303444000,-636.671876,0.00016438,2]
[421893181,1778303444000,-151.0,0.00016438,2]
[421893180,1778303444000,-636.671875,0.00016438,2]
[421893184,1778303444000,-151.0,0.00016438,2]
[421893183,1778303444000,-151.0,0.00016438,2]
[421893188,1778303444000,-2000.0,0.00016601,2]
[421893187,1778303444000,-13042.42830685,0.000165,2]
[421893186,1778303444000,-4440.54382995,0.000165,2]
[421893126,1778303444000,-502.91035956,0.00016438,2]
[421893182,1778303444000,-151.0,0.00016438,2]
[421893167,1778303444000,-636.671876,0.00016438,2]
[421893185,1778303444000,-376.22,0.00016486,2]
[421893155,1778303444000,-500.8242126,0.00016438,2]
[421893127,1778303444000,-529.85657504,0.00016438,2]
[421893125,1778303444000,-500.0,0.00016438,2]
[421893140,1778303444000,-1893.586543,0.00016438,2]
[421893130,1778303444000,-500.0,0.00016438,2]
[421893141,1778303444000,-1893.586543,0.00016438,2]
[421893135,1778303444000,-1893.586543,0.00016438,2]
[421893142,1778303444000,-1893.586543,0.00016438,2]
[421893134,1778303444000,-1893.586543,0.00016438,2]
[421893161,1778303444000,-636.671876,0.00016438,2]
[421893129,1778303444000,-500.0,0.00016438,2]
[421893131,1778303444000,-500.0,0.00016438,2]
[421893133,1778303444000,-229.72,0.00016438,2]
[421893136,1778303444000,-1893.586543,0.00016438,2]
[421893137,1778303444000,-1893.586543,0.00016438,2]
[421893132,1778303444000,-500.0,0.00016438,2]
[421893138,1778303444000,-1893.586543,0.00016438,2]
[421893153,1778303444000,-1893.586551,0.00016438,2]
[421893139,1778303444000,-1893.586543,0.00016438,2]
[421893150,1778303444000,-1893.586543,0.00016438,2]
[421893156,1778303444000,-500.0,0.00016438,2]
[421893152,1778303444000,-1893.586543,0.00016438,2]
[421893151,1778303444000,-1893.586543,0.00016438,2]
[421893154,1778303444000,-500.0,0.00016438,2]
[421893148,1778303444000,-1893.586543,0.00016438,2]
[421893147,1778303444000,-1893.586543,0.00016438,2]
[421893146,1778303444000,-1893.586543,0.00016438,2]
[421893149,1778303444000,-1893.586543,0.00016438,2]
[421893145,1778303444000,-1893.586543,0.00016438,2]
[421893143,1778303444000,-1893.586543,0.00016438,2]
[421893144,1778303444000,-1893.586543,0.00016438,2]
[421893255,1778303445000,-162.6609637,0.00016883,2]
[421893265,1778303445000,-186.53575633,0.0001695,2]
[421893267,1778303445000,-1000.0,0.00016986,2]
[421893256,1778303445000,-173.19896806,0.00016891,8]
[421893253,1778303445000,-500.0,0.00016883,2]
[421893235,1778303445000,-204.16,0.00016712,2]
[421893245,1778303445000,-250.0,0.00016865,2]
[421893252,1778303445000,-503.15133284,0.00016883,2]
[421893250,1778303445000,-21381.0,0.00016876,2]
[421893248,1778303445000,-250.0,0.00016865,2]
[421893249,1778303445000,-250.0,0.00016865,2]
[421893241,1778303445000,-2000.0,0.00016861,2]
[421893266,1778303445000,-176.1219201,0.00016986,2]
[421893272,1778303445000,-1011.90271153,0.00016986,2]
[421893259,1778303445000,-2000.0,0.00016947,2]
[421893263,1778303445000,-2000.0,0.00016947,2]
[421893257,1778303445000,-2000.0,0.00016947,2]
[421893261,1778303445000,-2000.0,0.00016947,2]
[421893258,1778303445000,-2000.0,0.00016947,2]
[421893260,1778303445000,-2000.0,0.00016947,2]
[421893270,1778303445000,-506.74527043,0.00016986,2]
[421893268,1778303445000,-503.47205326,0.00016986,2]
[421893279,1778303445000,-1002.48718577,0.00016986,2]
[421893273,1778303445000,-1000.0,0.00016986,2]
[421893274,1778303445000,-1003.13541308,0.00016986,2]
[421893269,1778303445000,-505.96777381,0.00016986,2]
[421893237,1778303445000,-450.0,0.00016712,2]
[421893264,1778303445000,-2000.0,0.00016947,2]
[421893247,1778303445000,-250.0,0.00016865,2]
[421893216,1778303445000,-2000.0,0.00016602,2]
[421893239,1778303445000,-150.0,0.00016817,2]
[421893281,1778303445000,-597.0,0.00017,2]
[421893189,1778303445000,-2000.0,0.00016601,2]
[421893190,1778303445000,-2000.0,0.00016601,2]
[421893191,1778303445000,-2000.0,0.00016601,2]
[421893192,1778303445000,-2000.0,0.00016601,2]
[421893193,1778303445000,-2000.0,0.00016601,2]
[421893194,1778303445000,-2000.0,0.00016601,2]
[421893201,1778303445000,-2000.0,0.00016602,2]
[421893199,1778303445000,-2000.0,0.00016602,2]
[421893198,1778303445000,-2000.0,0.00016602,2]
[421893197,1778303445000,-2000.0,0.00016602,2]
[421893195,1778303445000,-2000.0,0.00016601,2]
[421893196,1778303445000,-2000.0,0.00016601,2]
[421893203,1778303445000,-2000.0,0.00016602,2]
[421893205,1778303445000,-2000.0,0.00016602,2]
[421893218,1778303445000,-2000.0,0.00016602,2]
[421893220,1778303445000,-2000.0,0.00016602,2]
[421893224,1778303445000,-616.17901578,0.00016684,2]
[421893222,1778303445000,-626.0,0.00016602,2]
[421893208,1778303445000,-2000.0,0.00016602,2]
[421893226,1778303445000,-152.0,0.00016698,3]
[421893212,1778303445000,-2000.0,0.00016602,2]
[421893214,1778303445000,-2000.0,0.00016602,2]
[421893210,1778303445000,-2000.0,0.00016602,2]
[421893229,1778303445000,-231.21,0.000167,2]
[421893231,1778303445000,-1811.1,0.000167,2]
[421893243,1778303445000,-563.0,0.00016865,2]
[421893233,1778303445000,-331.0,0.00016702,2]
[421893280,1778303445000,-511.05424989,0.00016986,2]
[421893282,1778303445000,-2000.0,0.00017059,2]
[421893315,1778303445000,-791.49159204,0.000177,2]
[421893323,1778303445000,-564.38477353,0.0001799,2]
[421893326,1778303445000,-535.0,0.00018,2]
[421893313,1778303445000,-597.0,0.00017636,2]
[421893314,1778303445000,-291.0,0.00017694,2]
[421893320,1778303445000,-56328.1520396,0.000179,2]
[421893316,1778303445000,-331.0,0.00017702,2]
[421893318,1778303445000,-159.63,0.00017846,2]
[421893327,1778303445000,-467.0,0.00018,2]
[421893333,1778303445000,-1231.0,0.00018,2]
[421893317,1778303445000,-1620.93505872,0.00017709,2]
[421893312,1778303445000,-1500.0,0.00017534,2]
[421893330,1778303445000,-298.0,0.00018,2]
[421893310,1778303445000,-1500.0,0.00017534,2]
[421893324,1778303445000,-110645.76021821,0.00018,2]
[421893335,1778303445000,-229.0,0.00018,2]
[421893332,1778303445000,-982.0,0.00018,2]
[421893322,1778303445000,-376.22,0.00017984,2]
[421893331,1778303445000,-200.0,0.00018,2]
[421893311,1778303445000,-1500.0,0.00017534,2]
[421893329,1778303445000,-271.0,0.00018,2]
[421893334,1778303445000,-263.0,0.00018,2]
[421893338,1778303445000,-287.0,0.00018,2]
[421893337,1778303445000,-330.0297243,0.00018,2]
[421893336,1778303445000,-164.0,0.00018,2]
[421893340,1778303445000,-905.58310256,0.00018,2]
[421893277,1778303445000,-1000.0,0.00016986,2]
[421893339,1778303445000,-205.0,0.00018,2]
[421893328,1778303445000,-333.0,0.00018,2]
[421893321,1778303445000,-56348.55058058,0.000179,2]
[421893325,1778303445000,-500.65642724,0.00018,2]
[421893304,1778303445000,-150.0,0.00017508,2]
[421893276,1778303445000,-1000.0,0.00016986,2]
[421893278,1778303445000,-1138.54817259,0.00016986,2]
[421893284,1778303445000,-2000.0,0.00017059,2]
[421893285,1778303445000,-2000.0,0.00017059,2]
[421893286,1778303445000,-2000.0,0.00017059,2]
[421893295,1778303445000,-743.0,0.00017238,2]
[421893283,1778303445000,-2000.0,0.00017059,2]
[421893293,1778303445000,-1922.0,0.00017059,2]
[421893292,1778303445000,-2000.0,0.00017059,2]
[421893319,1778303445000,-377.0,0.00017881,2]
[421893288,1778303445000,-2000.0,0.00017059,2]
[421893287,1778303445000,-2000.0,0.00017059,2]
[421893294,1778303445000,-169.9,0.00017173,2]
[421893291,1778303445000,-2000.0,0.00017059,2]
[421893290,1778303445000,-2000.0,0.00017059,2]
[421893296,1778303445000,-369.05660245,0.0001726,2]
[421893308,1778303445000,-3627.0,0.00017508,2]
[421893289,1778303445000,-2000.0,0.00017059,2]
[421893303,1778303445000,-1269.0,0.00017508,2]
[421893301,1778303445000,-925.0,0.00017508,2]
[421893302,1778303445000,-1352.0,0.00017508,2]
[421893309,1778303445000,-1500.0,0.00017534,2]
[421893300,1778303445000,-624.0,0.00017508,2]
[421893307,1778303445000,-417.0,0.00017508,2]
[421893299,1778303445000,-225.0,0.00017488,2]
[421893297,1778303445000,-4609.0,0.00017392,2]
[421893298,1778303445000,-745.3099669,0.00017431,2]
[421893306,1778303445000,-1222.0,0.00017508,2]
[421893386,1778303446000,-2000.0,0.00018547,2]
[421893372,1778303446000,-1582.0,0.00018191,2]
[421893379,1778303446000,-2000.0,0.00018394,2]
[421893383,1778303446000,-152.0,0.00018524,4]
[421893381,1778303446000,-2410.0,0.0001841,2]
[421893376,1778303446000,-597.0,0.00018273,3]
[421893377,1778303446000,-275.89,0.000183,2]
[421893378,1778303446000,-89442.83,0.00018356,2]
[421893375,1778303446000,-905.58310256,0.000182,2]
[421893371,1778303446000,-151.0,0.00018186,2]
[421893380,1778303446000,-905.58310256,0.000184,2]
[421893384,1778303446000,-2000.0,0.00018547,2]
[421893382,1778303446000,-905.58310256,0.000185,2]
[421893401,1778303446000,-151.0,0.00019008,2]
[421893391,1778303446000,-200.64,0.00018689,2]
[421893392,1778303446000,-214.02,0.00018689,2]
[421893390,1778303446000,-2500.0,0.0001863,2]
[421893389,1778303446000,-2000.0,0.00018547,2]
[421893395,1778303446000,-500.0,0.00018904,2]
[421893387,1778303446000,-2000.0,0.00018547,2]
[421893388,1778303446000,-2000.0,0.00018547,2]
[421893393,1778303446000,-905.58310256,0.000187,2]
[421893396,1778303446000,-597.0,0.00018909,3]
[421893397,1778303446000,-2150.8711385,0.00018958,2]
[421893394,1778303446000,-331.0,0.00018702,2]
[421893413,1778303446000,-151.0,0.00019008,2]
[421893370,1778303446000,-151.0,0.00018186,2]
[421893385,1778303446000,-2000.0,0.00018547,2]
[421893369,1778303446000,-151.0,0.00018186,2]
[421893349,1778303446000,-308.0,0.000181,2]
[421893366,1778303446000,-151.0,0.00018186,2]
[421893346,1778303446000,-2000.0,0.00018082,2]
[421893341,1778303446000,-509.0,0.00018,2]
[421893343,1778303446000,-350.0,0.00018,2]
[421893344,1778303446000,-1014.06113167,0.00018082,2]
[421893342,1778303446000,-339.57755201,0.00018,2]
[421893348,1778303446000,-1798.3857242,0.000181,2]
[421893345,1778303446000,-861.78641092,0.00018082,2]
[421893347,1778303446000,-1018.68128644,0.00018082,2]
[421893360,1778303446000,-151.0,0.00018186,2]
[421893352,1778303446000,-200.0,0.000181,2]
[421893361,1778303446000,-151.75,0.00018186,2]
[421893356,1778303446000,-151.0,0.00018186,2]
[421893353,1778303446000,-7291.13743585,0.00018141,2]
[421893351,1778303446000,-314.0,0.000181,2]
[421893355,1778303446000,-151.0,0.00018186,2]
[421893357,1778303446000,-151.0,0.00018186,2]
[421893350,1778303446000,-1000.0,0.000181,2]
[421893354,1778303446000,-151.0,0.00018186,2]
[421893358,1778303446000,-151.0,0.00018186,2]
[421893359,1778303446000,-156.49,0.00018186,2]
[421893363,1778303446000,-153.74,0.00018186,2]
[421893373,1778303446000,-1582.0,0.00018191,2]
[421893374,1778303446000,-5412.0,0.00018195,5]
[421893362,1778303446000,-288.83,0.00018186,2]
[421893365,1778303446000,-152.62,0.00018186,2]
[421893364,1778303446000,-151.73,0.00018186,2]
[421893367,1778303446000,-151.0,0.00018186,2]
[421893368,1778303446000,-151.0,0.00018186,2]
[421893402,1778303446000,-151.0,0.00019008,2]
[421893464,1778303446000,-151.0,0.00019008,2]
[421893400,1778303446000,-152.3,0.00019008,2]
[421893462,1778303446000,-152.95,0.00019008,2]
[421893470,1778303446000,-151.0,0.00019008,2]
[421893472,1778303446000,-151.0,0.00019008,2]
[421893488,1778303446000,-151.0,0.00019008,2]
[421893496,1778303446000,-151.0,0.00019008,2]
[421893506,1778303446000,-151.0,0.00019008,2]
[421893468,1778303446000,-151.0,0.00019008,2]
[421893486,1778303446000,-154.88,0.00019008,2]
[421893500,1778303446000,-151.0,0.00019008,2]
[421893498,1778303446000,-151.73,0.00019008,2]
[421893482,1778303446000,-151.0,0.00019008,2]
[421893484,1778303446000,-151.0,0.00019008,2]
[421893460,1778303446000,-153.39,0.00019008,2]
[421893504,1778303446000,-151.0,0.00019008,2]
[421893476,1778303446000,-156.04,0.00019008,2]
[421893490,1778303446000,-151.0,0.00019008,2]
[421893466,1778303446000,-151.0,0.00019008,2]
[421893474,1778303446000,-151.0,0.00019008,2]
[421893494,1778303446000,-279.04,0.00019008,2]
[421893508,1778303446000,-151.0,0.00019008,2]
[421893512,1778303446000,-151.0,0.00019008,2]
[421893510,1778303446000,-151.0,0.00019008,2]
[421893478,1778303446000,-151.0,0.00019008,2]
[421893502,1778303446000,-151.0,0.00019008,2]
[421893514,1778303446000,-151.0,0.00019008,2]
[421893516,1778303446000,-151.0,0.00019008,2]
[421893492,1778303446000,-151.0,0.00019008,2]
[421893458,1778303446000,-152.08,0.00019008,2]
[421893480,1778303446000,-151.0,0.00019008,2]
[421893446,1778303446000,-151.0,0.00019008,2]
[421893404,1778303446000,-151.0,0.00019008,2]
[421893403,1778303446000,-151.0,0.00019008,2]
[421893398,1778303446000,-1582.0,0.00018989,2]
[421893399,1778303446000,-151.0,0.00019008,2]
[421893415,1778303446000,-151.0,0.00019008,2]
[421893448,1778303446000,-152.08,0.00019008,2]
[421893407,1778303446000,-151.0,0.00019008,2]
[421893411,1778303446000,-478.13,0.00019008,2]
[421893417,1778303446000,-151.0,0.00019008,2]
[421893429,1778303446000,-151.0,0.00019008,2]
[421893423,1778303446000,-151.0,0.00019008,2]
[421893433,1778303446000,-151.0,0.00019008,2]
[421893431,1778303446000,-151.0,0.00019008,2]
[421893425,1778303446000,-151.0,0.00019008,2]
[421893409,1778303446000,-280.43,0.00019008,2]
[421893421,1778303446000,-157.09,0.00019008,2]
[421893436,1778303446000,-152.35,0.00019008,2]
[421893456,1778303446000,-152.04,0.00019008,2]
[421893450,1778303446000,-152.03,0.00019008,2]
[421893454,1778303446000,-152.84,0.00019008,2]
[421893444,1778303446000,-151.0,0.00019008,2]
[421893452,1778303446000,-151.0,0.00019008,2]
[421893405,1778303446000,-151.0,0.00019008,2]
[421893440,1778303446000,-151.0,0.00019008,2]
[421893435,1778303446000,-151.0,0.00019008,2]
[421893427,1778303446000,-151.0,0.00019008,2]
[421893438,1778303446000,-151.0,0.00019008,2]
[421893419,1778303446000,-191.87,0.00019008,2]
[421893442,1778303446000,-151.0,0.00019008,2]
[421893553,1778303447000,-151.0,0.00019008,2]
[421893547,1778303447000,-151.0,0.00019008,2]
[421893549,1778303447000,-151.0,0.00019008,2]
[421893545,1778303447000,-151.0,0.00019008,2]
[421893543,1778303447000,-151.0,0.00019008,2]
[421893541,1778303447000,-151.0,0.00019008,2]
[421893535,1778303447000,-151.0,0.00019008,2]
[421893537,1778303447000,-152.52,0.00019008,2]
[421893519,1778303447000,-151.0,0.00019008,2]
[421893517,1778303447000,-151.0,0.00019008,2]
[421893525,1778303447000,-153.39,0.00019008,2]
[421893521,1778303447000,-151.0,0.00019008,2]
[421893531,1778303447000,-151.0,0.00019008,2]
[421893523,1778303447000,-151.0,0.00019008,2]
[421893529,1778303447000,-151.0,0.00019008,2]
[421893551,1778303447000,-151.0,0.00019008,2]
[421893539,1778303447000,-151.0,0.00019008,2]
[421893527,1778303447000,-151.0,0.00019008,2]
[421893555,1778303447000,-151.0,0.00019008,2]
[421893559,1778303447000,-151.0,0.00019008,2]
[421893557,1778303447000,-151.0,0.00019008,2]
[421893589,1778303447000,-173.19896806,0.00019044,12]
[421893587,1778303447000,-151.0,0.00019011,2]
[421893603,1778303447000,-700.0,0.00019064,2]
[421893597,1778303447000,-700.0,0.00019064,2]
[421893583,1778303447000,-151.0,0.00019008,2]
[421893581,1778303447000,-151.0,0.00019008,2]
[421893579,1778303447000,-151.0,0.00019008,2]
[421893585,1778303447000,-151.0,0.00019011,2]
[421893569,1778303447000,-151.0,0.00019008,2]
[421893565,1778303447000,-151.0,0.00019008,2]
[421893577,1778303447000,-151.0,0.00019008,2]
[421893567,1778303447000,-151.0,0.00019008,2]
[421893563,1778303447000,-151.72,0.00019008,2]
[421893573,1778303447000,-151.0,0.00019008,2]
[421893571,1778303447000,-151.0,0.00019008,2]
[421893575,1778303447000,-151.0,0.00019008,2]
[421893561,1778303447000,-151.0,0.00019008,2]
[421893745,1778303448000,-394.18,0.00019341,30]
[421893743,1778303448000,-393.95,0.00019341,30]
[421893741,1778303448000,-394.18,0.0001933,7]
[421893738,1778303448000,-7710.81,0.00019318,2]
[421893735,1778303448000,-393.95,0.00019318,2]
[421893736,1778303448000,-7710.83,0.00019318,2]
[421893734,1778303448000,-1582.0,0.00019309,2]
[421893733,1778303448000,-7710.81,0.00019306,30]
[421893725,1778303448000,-393.95,0.00019295,7]
[421893737,1778303448000,-394.18,0.00019318,2]
[421893744,1778303448000,-7710.83,0.00019341,30]
[421893742,1778303448000,-7710.81,0.0001933,7]
[421893752,1778303448000,-7710.83,0.00019365,7]
[421893746,1778303448000,-7710.81,0.00019341,30]
[421893747,1778303448000,-393.95,0.00019353,2]
[421893758,1778303448000,-7710.81,0.00019376,30]
[421893750,1778303448000,-7710.81,0.00019353,2]
[421893755,1778303448000,-393.95,0.00019376,30]
[421893753,1778303448000,-394.18,0.00019365,7]
[421893748,1778303448000,-7710.83,0.00019353,2]
[421893730,1778303448000,-393.95,0.00019306,30]
[421893757,1778303448000,-394.18,0.00019376,30]
[421893749,1778303448000,-394.18,0.00019353,2]
[421893754,1778303448000,-7710.81,0.00019365,7]
[421893756,1778303448000,-7710.83,0.00019376,30]
[421893751,1778303448000,-393.95,0.00019365,7]
[421893740,1778303448000,-7710.83,0.0001933,7]
[421893724,1778303448000,-7710.81,0.00019283,2]
[421893721,1778303448000,-393.95,0.00019283,2]
[421893732,1778303448000,-394.18,0.00019306,30]
[421893760,1778303448000,-7710.83,0.00019388,2]
[421893704,1778303448000,-7710.83,0.00019237,30]
[421893702,1778303448000,-7710.81,0.00019225,7]
[421893705,1778303448000,-394.18,0.00019237,30]
[421893713,1778303448000,-7710.83,0.0001926,7]
[421893706,1778303448000,-7710.81,0.00019237,30]
[421893710,1778303448000,-7710.81,0.00019248,2]
[421893707,1778303448000,-393.95,0.00019248,2]
[421893714,1778303448000,-394.18,0.0001926,7]
[421893709,1778303448000,-394.18,0.00019248,2]
[421893708,1778303448000,-7710.83,0.00019248,2]
[421893703,1778303448000,-393.95,0.00019237,30]
[421893728,1778303448000,-7710.81,0.00019295,7]
[421893711,1778303448000,-1582.0,0.00019257,2]
[421893716,1778303448000,-1952.94062793,0.0001926,2]
[421893719,1778303448000,-394.18,0.00019272,30]
[421893718,1778303448000,-7710.83,0.00019272,30]
[421893720,1778303448000,-7710.81,0.00019272,30]
[421893717,1778303448000,-393.95,0.00019272,30]
[421893715,1778303448000,-7710.81,0.0001926,7]
[421893722,1778303448000,-7710.83,0.00019283,2]
[421893727,1778303448000,-394.18,0.00019295,7]
[421893729,1778303448000,-214.73073128,0.000193,7]